fUST/lending_fUST_20240817
["ID","MTS","AMOUNT","RATE_DAILY","PERIOD"]
[335118567,1723861849589,-251.215522,0.00049315,120]
[335118568,1723861849600,-500.0,0.00049315,120]
[335118569,1723861849610,-617.45,0.00049315,120]
[335118570,1723861849620,-500.0,0.00049315,120]
[335118571,1723861849630,-500.0,0.00049315,120]
[335118572,1723861849641,-500.0,0.00049315,120]
[335118573,1723861849652,-500.0,0.00049315,120]
[335118574,1723861849661,-500.0,0.00049315,120]
[335118575,1723861849671,-500.0,0.00049315,120]
[335118576,1723861849682,-165.72228419,0.00049315,120]
[335118577,1723861849691,-570.91469634,0.00049315,120]
[335118578,1723861849700,-500.0,0.00049315,120]
[335118579,1723861849711,-500.0,0.00049315,120]
[335118580,1723861849723,-503.34644857,0.00049315,120]
[335118581,1723861849734,-500.0,0.00049315,120]
[335118582,1723861849744,-500.0,0.00049315,120]
[335118583,1723861849754,-500.0,0.00049315,120]
[335118584,1723861849765,-500.0,0.00049315,120]
[335118585,1723861849774,-500.0,0.00049315,120]
[335118586,1723861849783,-500.0,0.00049315,120]
[335118587,1723861849793,-500.0,0.00049315,120]
[335118588,1723861849802,-500.0,0.00049315,120]
[335118589,1723861849812,-502.47237297,0.00049315,120]
[335118590,1723861849822,-500.0,0.00049315,120]
[335118591,1723861849833,-500.0,0.00049315,120]
[335118592,1723861849844,-500.0,0.00049315,120]
[335118593,1723861849855,-500.0,0.00049315,120]
[335118594,1723861849865,-500.0,0.00049315,120]
[335118595,1723861849876,-500.0,0.00049315,120]
[335118596,1723861849886,-389.51760356,0.00049315,120]
[335118597,1723861849899,-640.92062604,0.00049315,120]
[335118598,1723861849910,-500.0,0.00049315,120]
[335118599,1723861849921,-500.65139988,0.00049315,120]
[335118600,1723861849931,-502.56365884,0.00049315,120]
[335118601,1723861849942,-500.0,0.00049315,120]
[335118602,1723861849954,-180.25689423,0.00049315,120]
[335118603,1723861850300,-226.60426432,0.00049315,120]
[335118604,1723861850314,-93.13884145,0.00049315,120]
[335118605,1723861850324,-500.0,0.00049315,120]
[335118606,1723861850334,-502.02136754,0.00049315,120]
[335118607,1723861850345,-500.0,0.00049315,120]
[335118608,1723861850357,-500.0,0.00049315,120]
[335118609,1723861850368,-500.0,0.00049315,120]
[335118610,1723861850378,-500.0,0.00049315,120]
[335118611,1723861850389,-500.0,0.00049315,120]
[335118612,1723861850399,-500.0,0.00049315,120]
[335118613,1723861850410,-511.55870203,0.00049315,120]
[335118614,1723861850419,-500.0,0.00049315,120]
[335118615,1723861850429,-236.07055337,0.00049315,120]
[335118616,1723861850506,-500.0,0.00049315,120]
[335118617,1723861850517,-500.0,0.00049315,120]
[335118618,1723861850529,-500.86081148,0.00049315,120]
[335118619,1723861850541,-195.54343186,0.00049315,120]
[335118620,1723861850579,-84.44779876,0.00049315,120]
[335118621,1723861850588,-189.69220124,0.00049315,120]
[335118622,1723861851186,-311.915364,0.00049305,61]
[335118623,1723861852804,-825.68184661,0.00049305,61]
[335118624,1723861852815,-310.30779876,0.00049315,120]
[335118625,1723861852824,-500.0,0.00049315,120]
[335118626,1723861852834,-500.0,0.00049315,120]
[335118627,1723861852844,-504.32589964,0.00049315,120]
[335118628,1723861852853,-500.0,0.00049315,120]
[335118629,1723861852864,-500.0,0.00049315,120]
[335118630,1723861852875,-500.0,0.00049315,120]
[335118631,1723861852886,-500.0,0.00049315,120]
[335118632,1723861852896,-503.1113352,0.00049315,120]
[335118633,1723861852908,-500.0,0.00049315,120]
[335118634,1723861852918,-166.625475,0.00049315,120]
[335118635,1723861852927,-166.625475,0.00049315,120]
[335118636,1723861852940,-166.625475,0.00049315,120]
[335118637,1723861852950,-166.625475,0.00049315,120]
[335118638,1723861852962,-500.0,0.00049315,120]
[335118639,1723861852972,-218.84138075,0.00049315,120]
[335118640,1723861852982,-500.0,0.00049315,120]
[335118641,1723861852994,-166.625475,0.00049315,120]
[335118642,1723861853005,-166.625475,0.00049315,120]
[335118643,1723861853016,-500.0,0.00049315,120]
[335118644,1723861853029,-166.625475,0.00049315,120]
[335118645,1723861853039,-166.625471,0.00049315,120]
[335118646,1723861853050,-500.0,0.00049315,120]
[335118647,1723861853064,-500.0,0.00049315,120]
[335118648,1723861853073,-500.0,0.00049315,120]
[335118649,1723861853084,-278.713217,0.00049315,120]
[335118650,1723861853094,-278.713217,0.00049315,120]
[335118651,1723861853106,-278.713217,0.00049315,120]
[335118652,1723861853116,-500.0,0.00049315,120]
[335118653,1723861853125,-553.82125654,0.00049315,120]
[335118654,1723861853136,-500.0,0.00049315,120]
[335118655,1723861853146,-500.0,0.00049315,120]
[335118656,1723861853157,-278.713217,0.00049315,120]
[335118657,1723861853166,-278.713217,0.00049315,120]
[335118658,1723861853177,-278.713211,0.00049315,120]
[335118659,1723861853188,-500.0,0.00049315,120]
[335118660,1723861853199,-502.12969963,0.00049315,120]
[335118661,1723861853209,-502.87001699,0.00049315,120]
[335118662,1723861853219,-500.0,0.00049315,120]
[335118663,1723861853229,-500.0,0.00049315,120]
[335118664,1723861853240,-500.0,0.00049315,120]
[335118665,1723861853250,-500.0,0.00049315,120]
[335118666,1723861853259,-500.0,0.00049315,120]
[335118667,1723861853270,-500.0,0.00049315,120]
[335118668,1723861853282,-341.01823474,0.00049315,120]
[335118669,1723861853292,-250.902243,0.00049315,2]
[335118670,1723861853303,-500.0,0.00049315,120]
[335118671,1723861853313,-500.0,0.00049315,120]
[335118672,1723861853323,-500.0,0.00049315,120]
[335118673,1723861853334,-500.0,0.00049315,120]
[335118674,1723861853344,-500.0,0.00049315,120]
[335118675,1723861853355,-500.0,0.00049315,120]
[335118676,1723861853364,-500.0,0.00049315,120]
[335118677,1723861853376,-500.0,0.00049315,120]
[335118678,1723861853387,-500.0,0.00049315,120]
[335118679,1723861853397,-500.0,0.00049315,120]
[335118680,1723861853408,-500.0,0.00049315,120]
[335118681,1723861853419,-500.0,0.00049315,120]
[335118682,1723861853431,-500.0,0.00049315,120]
[335118683,1723861853441,-500.0,0.00049315,120]
[335118684,1723861853454,-500.0,0.00049315,120]
[335118685,1723861853464,-500.0,0.00049315,120]
[335118686,1723861853474,-500.0,0.00049315,120]
[335118687,1723861853483,-500.0,0.00049315,120]
[335118688,1723861853493,-500.0,0.00049315,120]
[335118689,1723861853503,-430.85855058,0.00049315,120]
[335118690,1723861853514,-502.69646179,0.00049315,120]
[335118691,1723861853524,-514.54134365,0.00049315,120]
[335118692,1723861853534,-500.0,0.00049315,120]
[335118693,1723861853544,-500.0,0.00049315,120]
[335118694,1723861853553,-500.0,0.00049315,120]
[335118695,1723861853563,-500.0,0.00049315,120]
[335118696,1723861853572,-500.0,0.00049315,120]
[335118697,1723861853581,-500.0,0.00049315,120]
[335118698,1723861853591,-1777.668007,0.00049315,120]
[335118699,1723861853600,-1777.668007,0.00049315,120]
[335118700,1723861853610,-1777.668007,0.00049315,120]
[335118701,1723861853620,-500.0,0.00049315,120]
[335118702,1723861853630,-500.0,0.00049315,120]
[335118703,1723861853640,-500.0,0.00049315,120]
[335118704,1723861853649,-500.0,0.00049315,120]
[335118705,1723861853659,-1777.668007,0.00049315,120]
[335118706,1723861853670,-500.0,0.00049315,120]
[335118707,1723861853680,-1777.668007,0.00049315,120]
[335118708,1723861853690,-1777.668016,0.00049315,120]
[335118709,1723861853701,-519.1360759,0.00049315,120]
[335118710,1723861853711,-500.0,0.00049315,120]
[335118711,1723861853721,-273.03257906,0.00049315,120]
[335118712,1723861853731,-500.0,0.00049315,120]
[335118713,1723861853741,-500.0,0.00049315,120]
[335118714,1723861853751,-505.29167444,0.00049315,120]
[335118715,1723861853760,-500.0,0.00049315,120]
[335118716,1723861853769,-500.0,0.00049315,120]
[335118717,1723861853778,-500.0,0.00049315,120]
[335118718,1723861853788,-500.0,0.00049315,120]
[335118719,1723861853797,-500.0,0.00049315,120]
[335118720,1723861853806,-500.0,0.00049315,120]
[335118721,1723861853817,-505.62765702,0.00049315,120]
[335118722,1723861853826,-1319.35,0.00049315,120]
[335118723,1723861853835,-500.0,0.00049315,120]
[335118724,1723861853843,-500.0,0.00049315,120]
[335118725,1723861853853,-500.0,0.00049315,120]
[335118726,1723861853862,-220.434634,0.00049315,120]
[335118727,1723861853871,-220.434634,0.00049315,120]
[335118728,1723861853880,-505.37592505,0.00049315,120]
[335118729,1723861853890,-220.434634,0.00049315,120]
[335118730,1723861853899,-2146.913284,0.00049315,120]
[335118731,1723861853908,-2146.913284,0.00049315,120]
[335118732,1723861853917,-500.0,0.00049315,120]
[335118733,1723861853926,-500.0,0.00049315,120]
[335118734,1723861853935,-609.19454029,0.00049315,120]
[335118735,1723861853944,-220.434634,0.00049315,120]
[335118736,1723861853953,-220.434634,0.00049315,120]
[335118737,1723861853962,-2146.913284,0.00049315,120]
[335118738,1723861853971,-220.434635,0.00049315,120]
[335118739,1723861853980,-2146.913276,0.00049315,120]
[335118740,1723861853989,-500.0,0.00049315,120]
[335118741,1723861853998,-500.0,0.00049315,120]
[335118742,1723861854007,-500.0,0.00049315,120]
[335118743,1723861854016,-507.65087744,0.00049315,120]
[335118744,1723861854025,-500.0,0.00049315,120]
[335118745,1723861854034,-500.0,0.00049315,120]
[335118746,1723861854043,-500.0,0.00049315,120]
[335118747,1723861854053,-500.0,0.00049315,120]
[335118748,1723861854066,-500.0,0.00049315,120]
[335118749,1723861854075,-500.0,0.00049315,120]
[335118750,1723861854084,-500.0,0.00049315,120]
[335118751,1723861854093,-500.0,0.00049315,120]
[335118752,1723861854103,-500.0,0.00049315,120]
[335118753,1723861854112,-500.0,0.00049315,120]
[335118754,1723861854121,-500.0,0.00049315,120]
[335118755,1723861854130,-500.0,0.00049315,120]
[335118756,1723861854142,-908.521871,0.00049315,120]
[335118757,1723861854151,-908.521871,0.00049315,120]
[335118758,1723861854160,-506.16807671,0.00049315,120]
[335118759,1723861854170,-500.0,0.00049315,120]
[335118760,1723861854179,-500.0,0.00049315,120]
[335118761,1723861854189,-500.0,0.00049315,120]
[335118762,1723861854198,-500.0,0.00049315,120]
[335118763,1723861854207,-908.521871,0.00049315,120]
[335118764,1723861854216,-908.521879,0.00049315,120]
[335118765,1723861854225,-500.0,0.00049315,120]
[335118766,1723861854234,-520.03875708,0.00049315,120]
[335118767,1723861854243,-500.0,0.00049315,120]
[335118768,1723861854252,-507.71328885,0.00049315,120]
[335118769,1723861854261,-500.0,0.00049315,120]
[335118770,1723861854270,-500.0,0.00049315,120]
[335118771,1723861854279,-500.0,0.00049315,120]
[335118772,1723861854288,-500.0,0.00049315,120]
[335118773,1723861854297,-500.0,0.00049315,120]
[335118774,1723861854307,-500.0,0.00049315,120]
[335118775,1723861854315,-614.2301676,0.00049315,120]
[335118776,1723861854324,-500.0,0.00049315,120]
[335118777,1723861854334,-4949.25,0.00049315,120]
[335118778,1723861854343,-500.0,0.00049315,120]
[335118779,1723861854352,-500.0,0.00049315,120]
[335118780,1723861854361,-500.0,0.00049315,120]
[335118781,1723861854370,-500.0,0.00049315,120]
[335118782,1723861854379,-500.0,0.00049315,120]
[335118783,1723861854388,-500.0,0.00049315,120]
[335118784,1723861854488,-550.01665065,0.00049315,120]
[335118785,1723861854497,-500.0,0.00049315,120]
[335118786,1723861854507,-500.0,0.00049315,120]
[335118787,1723861854516,-500.0,0.00049315,30]
[335118788,1723861854525,-500.0,0.00049315,120]
[335118789,1723861854534,-500.0,0.00049315,120]
[335118790,1723861854544,-512.57939239,0.00049315,120]
[335118791,1723861854553,-500.0,0.00049315,120]
[335118792,1723861854562,-500.0,0.00049315,120]
[335118793,1723861854572,-8.71907488,0.00049315,120]
[335118794,1723861854839,-293.503,0.00049315,120]
[335118795,1723861854852,-197.77792512,0.00049315,120]
[335118796,1723861854865,-97.53707488,0.00049315,120]
[335118797,1723861855549,273.37336231,9.9e-05,2]
[335118798,1723861855617,1821.2475238,0.0001524,2]
[335118799,1723861855839,206.74474317,0.0001524,2]
[335118800,1723861856143,196.71565749,0.0001524,2]
[335118801,1723861856348,4421.62758372,0.00036,30]
[335118802,1723861856369,5499.16299462,0.00036,30]
[335118803,1723861856393,5892.739266,0.00036,30]
[335118804,1723861856417,4775.47015566,0.00036,30]
[335118805,1723861858308,154.65203293,0.0001524,2]
[335118806,1723861858685,196.61350573,0.0001524,2]
[335118807,1723861859963,210.13067206,0.0001524,2]
[335118808,1723861860433,569.27511148,0.0001524,2]
[335118809,1723861861075,520.31494712,0.0001524,2]
[335118810,1723861861746,309.73441032,0.0001524,2]
[335118811,1723861862358,192.04445412,0.0001524,2]
[335118812,1723861862458,2712.01972973,0.0001524,2]
[335118813,1723861862587,223.40672649,0.0001524,2]
[335118814,1723861863204,155.39930627,0.0001524,2]
[335118815,1723861863232,154.80649189,0.0001524,2]
[335118816,1723861864205,160.65924239,0.0001524,2]
[335118817,1723861864424,810.98237385,0.0001524,2]
[335118818,1723861864816,500.0,0.0001524,2]
[335118819,1723861865908,155.00281868,0.0001524,2]
[335118820,1723861866146,154.79103211,0.0001524,2]
[335118821,1723861866203,543.88804951,0.0001524,2]
[335118822,1723861866240,154.86909325,0.0001524,2]
[335118823,1723861866270,534.74029631,0.0001524,2]
[335118824,1723861866617,3025.44535645,0.0001524,2]
[335118825,1723861867827,273.37336231,9.9e-05,2]
[335118826,1723861883150,273.37336231,9.9e-05,2]
[335118827,1723861898977,273.37336231,9.9e-05,2]
[335118829,1723861914553,273.37336231,9.9e-05,2]
[335118830,1723861929988,273.37336231,9.9e-05,2]
[335118831,1723861946415,273.37336231,9.9e-05,2]
[335118832,1723861948955,3659.82489914,9.9e-05,2]
[335118833,1723861949574,194.35894473,9.9e-05,2]
[335118834,1723861952063,425.08226658,9.9e-05,2]
[335118835,1723861959904,3659.82489914,9.9e-05,2]
[335118836,1723861961844,273.37336231,9.9e-05,2]
[335118837,1723861964143,245.326059,9.9e-05,2]
[335118838,1723861977185,273.37336231,9.9e-05,2]
[335118839,1723861992544,273.37336231,9.9e-05,2]
[335118840,1723862006567,289.05724596,9.9e-05,2]
[335118841,1723862010373,273.37336231,9.9e-05,2]
[335118842,1723862025603,273.37336231,9.9e-05,2]
[335118844,1723862041589,273.37336231,9.9e-05,2]
[335118846,1723862058191,273.37336231,9.9e-05,2]
[335118847,1723862074040,273.37336231,9.9e-05,2]
[335118848,1723862079913,245.326059,9.9e-05,2]
[335118849,1723862084131,160.27223036,9.9e-05,2]
[335118850,1723862089379,273.37336231,9.9e-05,2]
[335118851,1723862094953,245.326059,9.9e-05,2]
[335118855,1723862277918,809.65861321,0.00010958,2]
[335118857,1723862348350,1118.40764083,0.00010958,2]
[335118858,1723862354141,155.0015726,0.00010958,4]
[335118859,1723862359688,196.71565749,0.00010958,2]
[335118862,1723862393071,211.47947035,0.00010958,2]
[335118863,1723862393422,413.57291796,0.00010958,2]
[335118864,1723862395355,202.48635104,0.00010958,2]
[335118865,1723862413870,414.95022998,0.00010958,7]
[335118866,1723862429806,381.67966933,0.00010958,2]
[335118867,1723862557307,210.2476498,0.00010958,2]
[335118868,1723862658582,250.0,0.00010914,2]
[335118869,1723862658703,250.0,0.00010943,2]
[335118870,1723862658935,250.0,0.00010973,2]
[335118871,1723862659139,250.0,0.00011003,2]
[335118872,1723862681567,371.34730539,0.00010958,2]
[335118874,1723862751243,-250.0,0.00011033,2]
[335118875,1723862751267,-47.81267808,0.00011063,2]
[335118877,1723862827097,-202.18732192,0.00011063,2]
[335118878,1723862827126,-250.0,0.00011093,2]
[335118879,1723862827147,-300.0,0.00011101,2]
[335118880,1723862827168,-1088.85864503,0.00011102,2]
[335118881,1723862830137,-390.3816497,0.00011102,2]
[335118882,1723862832105,-2312.83823748,0.00011102,2]
[335118883,1723862840118,-525.83394288,0.00011102,2]
[335118884,1723862842099,-590.28765096,0.00011102,2]
[335118885,1723862850136,-8504.91689548,0.00011102,2]
[335118886,1723862851120,-743.16645779,0.00011102,2]
[335118889,1723862945130,-10743.71652068,0.00011102,2]
[335118890,1723862945154,-250.0,0.00011123,2]
[335118891,1723862945175,-1199.5760532,0.00011145,2]
[335118892,1723862945200,-250.0,0.00011153,2]
[335118893,1723862945222,-250.0,0.00011183,2]
[335118894,1723862945247,-250.0,0.00011213,2]
[335118895,1723862945271,-250.0,0.00011243,2]
[335118896,1723862945293,-250.0,0.00011273,2]
[335118897,1723862945317,-250.0,0.00011302,2]
[335118898,1723862945341,-250.0,0.00011332,2]
[335118899,1723862945364,-250.0,0.00011362,2]
[335118900,1723862945389,-250.0,0.00011392,2]
[335118901,1723862945415,-250.0,0.00011422,2]
[335118902,1723862945444,-250.0,0.00011452,2]
[335118903,1723862945470,-250.0,0.00011482,2]
[335118904,1723862945496,-49145.28982638,0.00011712,2]
[335118905,1723862945526,-3780.944343,0.00011712,2]
[335118906,1723862945551,-10017.35391704,0.00011731,2]
[335118907,1723862946083,-23558.70546279,0.00011731,2]
[335118908,1723862946109,-20784.67491515,0.00011842,2]
[335118909,1723862946133,-1319.16033114,0.00011887,2]
[335118910,1723862946158,-28170.8513551,0.000119,2]
[335118911,1723862946180,-5619.28584528,0.00012,2]
[335118912,1723862946204,-8842.60162724,0.00012163,2]
[335118913,1723862946230,-3932.44953814,0.00012416,2]
[335118914,1723862946256,-28170.8513551,0.0001249,2]
[335118915,1723862946281,-30566.27417006,0.000125,2]
[335118916,1723862949100,-2372.93511805,0.000125,2]
[335118917,1723862950109,-5645.94431161,0.000125,2]
[335118918,1723862955118,-11414.84640028,0.000125,2]
[335118919,1723862955141,-1768.96818855,0.00012551,2]
[335118920,1723862955164,-1500.0,0.00012629,2]
[335118921,1723862955186,-2165.20291982,0.00012629,2]
[335118922,1723862955210,-2522.75362247,0.00012629,2]
[335118923,1723862955234,-28170.8513551,0.00012769,2]
[335118924,1723862955256,-2141.83182523,0.00012779,2]
[335118925,1723862955278,-1525.32753055,0.000129,2]
[335118926,1723862955300,-304.92199306,0.00012934,2]
[335118927,1723862955321,-157.06256772,0.00012934,2]
[335118928,1723862955343,-156.81279309,0.00012934,2]
[335118929,1723862955366,-933.35147554,0.00012934,2]
[335118930,1723862955387,-207.14707134,0.00012934,2]
[335118931,1723862955410,-591.0989827,0.0001295,2]
[335118932,1723862955435,-180.36417415,0.00012971,2]
[335118933,1723862955459,-154.66746495,0.00012971,2]
[335118934,1723862955481,-208.04413736,0.00012971,2]
[335118935,1723862955504,-220.70237574,0.00012971,2]
[335118936,1723862955529,-413.40890205,0.00012971,2]
[335118937,1723862955553,-155.00722846,0.00012985,2]
[335118938,1723862955574,-154.80649189,0.00012985,2]
[335118939,1723862955595,-393.45878413,0.00012985,2]
[335118940,1723862955618,-190.21033226,0.00012985,2]
[335118941,1723862955653,-159.9152853,0.00012985,2]
[335118942,1723862955676,-404.2385044,0.00012985,2]
[335118943,1723862955700,-688.52759508,0.00012989,2]
[335118944,1723862955722,-817.31278804,0.00012989,2]
[335118945,1723862955748,-157.22335066,0.00012989,2]
[335118946,1723862955771,-28170.8513551,0.0001299,2]
[335118947,1723862955793,-601.75420408,0.00012991,2]
[335118948,1723862955817,-281.07945898,0.00012999,2]
[335118949,1723862955840,-35676.25158531,0.00013,2]
[335118950,1723862955863,-163.00124039,0.00013,2]
[335118951,1723862955884,-521.1431857,0.00013051,2]
[335118952,1723862955906,-221.76089031,0.00013333,2]
[335118953,1723862955929,-2789.7753068,0.00013457,2]
[335118954,1723862956068,-301.46890977,0.00013497,2]
[335118955,1723862956091,-150.112233,0.000136,2]
[335118956,1723862956112,-203.65312641,0.00013698,2]
[335118957,1723862956134,-536.02607522,0.00013698,2]
[335118958,1723862956157,-500.0,0.00013699,2]
[335118959,1723862956180,-500.0,0.00013699,2]
[335118960,1723862956204,-500.0,0.00013699,2]
[335118961,1723862956226,-500.0,0.00013699,2]
[335118962,1723862956248,-500.0,0.00013699,2]
[335118963,1723862956271,-500.0,0.00013699,2]
[335118964,1723862956293,-500.0,0.00013699,2]
[335118965,1723862956317,-500.0,0.00013699,2]
[335118966,1723862956340,-500.0,0.00013699,2]
[335118967,1723862956364,-500.0,0.00013699,2]
[335118968,1723862956387,-483.98987103,0.00013699,2]
[335118969,1723862956408,-209.86482964,0.0001397,2]
[335118970,1723862956436,-500.0,0.0001397,2]
[335118971,1723862956459,-216.29293858,0.0001397,2]
[335118972,1723862956482,-443.36641982,0.0001397,2]
[335118973,1723862956506,-500.0,0.0001397,2]
[335118974,1723862956530,-500.0,0.0001397,2]
[335118975,1723862956556,-150.112233,0.000172,2]
[335118976,1723862956578,-7395.84649227,0.0002,2]
[335118977,1723862956600,-150.112233,0.000207,2]
[335118978,1723862956622,-3932.44953811,0.00021529,2]
[335118979,1723862956645,-28170.8513551,0.0002399,3]
[335118980,1723862956668,-1525.32753051,0.0002414,2]
[335118981,1723862956690,-150.112233,0.000243,5]
[335118982,1723862956712,-465.04912513,0.00025398,2]
[335118983,1723862956733,-10000.0,0.00027777,120]
[335118984,1723862956754,-150.112233,0.000279,7]
[335118985,1723862956776,-507.19623907,0.00028776,2]
[335118986,1723862956798,-151.0,0.0003,120]
[335118987,1723862956821,-28170.8513551,0.00030631,4]
[335118988,1723862956843,-3932.44953811,0.00030641,2]
[335118989,1723862956866,-150.112233,0.000315,8]
[335118990,1723862956888,-150.0,0.000317,9]
[335118991,1723862956910,-539.18567037,0.000325,60]
[335118992,1723862956933,-210.74591245,0.00033,120]
[335118993,1723862956956,-150.112233,0.00035,8]
[335118994,1723862956977,-185.99,0.00035616,3]
[335118995,1723862956998,-1525.32753051,0.00036539,2]
[335118996,1723862957021,-150.112233,0.000386,5]
[335118997,1723862957048,-154.6,0.000397,31]
[335118998,1723862957087,-154.6,0.000397,31]
[335118999,1723862957113,-154.6,0.000397,31]
[335119000,1723862957139,-154.6,0.000397,31]
[335119001,1723862957161,-3932.44953811,0.00039754,2]
[335119002,1723862957184,-500.0,0.00041211,60]
[335119003,1723862957207,-150.112235,0.000421,10]
[335119004,1723862957235,-150.112233,0.000422,10]
[335119005,1723862957258,-500.0,0.00042211,60]
[335119006,1723862957279,-258.83,0.0004279,30]
[335119007,1723862957301,-1502.25112542,0.000428,60]
[335119008,1723862957324,-179.74,0.00043188,30]
[335119009,1723862957346,-898.74,0.00043188,30]
[335119010,1723862957370,-28170.8513551,0.00043198,5]
[335119011,1723862957391,-215.69,0.00043198,30]
[335119012,1723862957417,-500.0,0.000432,60]
[335119013,1723862957443,-1322.7,0.000432,14]
[335119014,1723862957467,-42566.5645,0.00043208,30]
[335119015,1723862957565,-272.179347,0.00043208,120]
[335119016,1723862957588,-272.179347,0.00043208,120]
[335119017,1723862957612,-412.833174,0.00043208,120]
[335119018,1723862957634,-412.833174,0.00043208,120]
[335119019,1723862957657,-827.570227,0.00043208,120]
[335119020,1723862957679,-827.570227,0.00043208,120]
[335119021,1723862957701,-151.0,0.00043208,120]
[335119022,1723862957725,-151.0,0.00043208,120]
[335119023,1723862957747,-276.110987,0.00043209,120]
[335119024,1723862957770,-276.110987,0.00043209,120]
[335119025,1723862957792,-151.0,0.00043209,120]
[335119026,1723862957813,-179.792227,0.00043209,120]
[335119027,1723862957843,-179.792227,0.00043209,120]
[335119028,1723862957867,-1802.752629,0.00043209,120]
[335119029,1723862957888,-1802.752629,0.00043209,120]
[335119030,1723862957910,-187.845681,0.00043209,120]
[335119031,1723862957932,-187.845681,0.00043209,120]
[335119032,1723862957954,-177.766801,0.00043209,120]
[335119033,1723862957976,-177.766801,0.00043209,120]
[335119034,1723862957997,-151.0,0.00043209,120]
[335119035,1723862958020,-482.905101,0.00043209,120]
[335119036,1723862958046,-482.905101,0.00043209,120]
[335119037,1723862958068,-500.0,0.00043211,60]
[335119038,1723862958089,-155.14384461,0.00044,120]
[335119039,1723862958110,-500.0,0.000442,60]
[335119040,1723862958132,-500.0,0.00044211,60]
[335119041,1723862958153,-500.0,0.00044668,30]
[335119042,1723862958174,-151.0,0.00045014,120]
[335119043,1723862958195,-54.73084871,0.00045211,60]
[335119045,1723862968128,-1612.67783737,0.00012551,2]
[335119046,1723862968170,-154.65203293,0.00012989,2]
[335119047,1723862968209,-301.46890977,0.00013496,2]
[335119048,1723862968244,-265.3275772,0.00014519,2]
[335119062,1723862970279,601.75420408,0.00012989,2]
[335119068,1723863024501,676.37926475,0.00043,120]
[335119104,1723863032126,-424.84340969,0.00045211,60]
[335119114,1723863032319,-20.4257416,0.00045211,60]
[335119115,1723863032330,-150.112233,0.000457,13]
[335119116,1723863032342,-150.112233,0.000458,14]
[335119117,1723863032353,-193.21484511,0.00045898,30]
[335119118,1723863032365,-306.78515489,0.00045898,30]
[335119119,1723863032374,-199.85484511,0.00046211,60]
[335119124,1723863038188,-300.14515489,0.00046211,60]
[335119125,1723863038198,-406.584468,0.000466,51]
[335119126,1723863038207,-241.0,0.00047561,5]
[335119127,1723863038216,-609.33220789,0.00047561,7]
[335119128,1723863038226,-515.87245511,0.00047562,120]
[335119129,1723863038235,-515.87245511,0.00047562,120]
[335119130,1723863038245,-515.87245511,0.00047562,120]
[335119131,1723863038254,-515.87245511,0.00047562,120]
[335119132,1723863038264,-515.87245511,0.00047562,120]
[335119133,1723863038273,-515.87245511,0.00047562,120]
[335119134,1723863038283,-515.87245511,0.00047562,120]
[335119135,1723863038293,-515.87245511,0.00047562,120]
[335119136,1723863038303,-515.87245511,0.00047562,120]
[335119137,1723863038312,-515.87245511,0.00047562,120]
[335119138,1723863038325,-515.87245511,0.00047562,120]
[335119139,1723863038336,-515.87245511,0.00047562,120]
[335119140,1723863038346,-515.87245511,0.00047562,120]
[335119141,1723863038355,-515.87245511,0.00047562,120]
[335119142,1723863038365,-515.87245511,0.00047562,120]
[335119143,1723863038375,-515.87245511,0.00047562,120]
[335119144,1723863038384,-515.87245511,0.00047562,120]
[335119145,1723863038394,-515.87245511,0.00047562,120]
[335119146,1723863038404,-515.87245511,0.00047562,120]